bitfinex/quotes_SOLUSD_20251006
["timestamp","ask_amount","ask_price","bid_price","bid_amount"]
[1759737435475,4.42170793,231.39,231.37,31.35]
[1759737435754,4.42170793,231.39,231.37,0.65]
[1759737435969,4.42170793,231.39,231.38,30.68]
[1759737437260,4.42170793,231.39,231.38,0.65]
[1759737437464,4.42170793,231.39,231.36,0.65]
[1759737437774,15.29818314,231.39,231.33,12.97381451]
[1759737437983,1.35759261,231.34,231.3,0.71]
[1759737438186,1.35759261,231.34,231.3,31.39]
[1759737438358,4.32301573,231.32,231.27,0.71]
[1759737438673,4.32301573,231.32,231.28,31.39]
[1759737438849,4.32301573,231.32,231.29,30.68]
[1759737439050,4.32301573,231.32,231.29,31.39]
[1759737439272,4.32301573,231.32,231.29,30.68]
[1759737439480,4.32301573,231.32,231.3,0.71]
[1759737439780,15.19931254,231.33,231.3,31.39]
[1759737439975,4.32283733,231.33,231.31,0.71]
[1759737440480,6.3702346,231.34,231.29,0.71]
[1759737440659,6.3702346,231.34,231.31,30.68]
[1759737440862,5.6802346,231.34,231.31,30.68]
[1759737441168,7.1328021,231.34,231.31,30.68]
[1759737441469,4.32264199,231.34,231.3,30.68]
[1759737441668,6.4428021,231.34,231.3,30.68]
[1759737441876,6.4428021,231.34,231.31,0.71]
[1759737442179,6.4428021,231.34,231.32,0.71]
[1759737442480,6.4428021,231.34,231.3,31.39]
[1759737442684,6.4428021,231.34,231.31,0.71]
[1759737442867,10.87647521,231.33,231.28,0.71]
[1759737443175,10.87647521,231.33,231.23,4.32469835]
[1759737443176,10.87647521,231.33,231.3,30.68]
[1759737443381,10.87647521,231.33,231.3,31.39]
[1759737443783,4.32301573,231.32,231.31,0.71]
[1759737444382,4.32301573,231.32,231.3,30.68]
[1759737444587,4.32301573,231.32,231.3,31.39]
[1759737446087,15.19932598,231.33,231.3,30.68]
[1759737446383,15.19932598,231.33,231.31,0.71]
[1759737446688,15.19932598,231.33,231.3,31.39]
[1759737446875,15.19932598,231.33,231.3,30.68]
[1759737447064,15.19932598,231.33,231.31,0.71]
[1759737447988,15.19932598,231.33,231.3,30.68]
[1759737448289,10.87647521,231.33,231.31,0.71]
[1759737448588,15.19938417,231.33,231.31,0.71]
[1759737449273,4.32245515,231.35,231.3,30.68]
[1759737449469,4.32228557,231.36,231.32,0.71]
[1759737449674,10.87647521,231.37,231.32,0.71]
[1759737450392,0.1,231.4,231.32,5.0330137]
[1759737450588,0.1,231.4,231.33,0.71]
[1759737450774,0.1,231.4,231.34,30.66]
[1759737451095,0.1,231.4,231.35,0.71]
[1759737451287,4.42172726,231.39,231.36,0.71]
[1759737451894,11.56647521,231.38,231.35,30.66]
[1759737452092,10.87647521,231.38,231.35,30.66]
[1759737452392,10.87647521,231.38,231.35,31.37]
[1759737452594,15.19852902,231.38,231.35,31.37]
[1759737455176,10.87647521,231.36,231.31,0.68]
[1759737455382,10.87647521,231.36,231.31,31.34]
[1759737455588,2.81016011,231.35,231.3,30.66]
[1759737455996,2.12016011,231.35,231.3,30.66]
[1759737456176,2.12016011,231.35,231.31,0.68]
[1759737456996,4.32245515,231.35,231.31,0.68]
[1759737457297,6.44261526,231.35,231.31,0.68]
[1759737458178,4.32245515,231.35,231.31,0.68]
[1759737458795,4.32245515,231.35,231.32,0.68]
[1759737459479,4.32245515,231.35,231.33,0.68]
[1759737460579,4.32245515,231.35,231.34,0.68]
[1759737460998,4.32208151,231.37,231.34,0.68]
[1759737461506,4.32208151,231.37,231.35,0.68]
[1759737461677,10.97647521,231.39,231.36,0.68]
[1759737461876,0.1,231.39,231.37,0.68]
[1759737462996,4.42175636,231.39,231.37,0.68]
[1759737464196,0.1,231.39,231.37,0.68]
[1759737464394,4.42173884,231.39,231.35,31.34]
[1759737464693,6.44224162,231.37,231.24,20.8]
[1759737464896,6.44224162,231.37,231.29,0.68]
[1759737465095,6.44224162,231.37,231.3,30.64]
[1759737465397,17.2474454,231.37,231.3,31.32]
[1759737465980,17.9374454,231.37,231.3,31.32]
[1759737466296,4.32245515,231.35,231.29,4.32348234]
[1759737466594,12.99663532,231.34,231.28,12.97662045]
[1759737466778,12.99663532,231.34,231.29,30.64]
[1759737466971,10.87647521,231.34,231.3,0.68]
[1759737467899,4.32282885,231.33,231.3,0.68]
[1759737468100,4.32282885,231.33,231.29,30.64]
[1759737468287,10.87647521,231.32,231.25,4.32414189]
[1759737468489,10.87647521,231.32,231.26,31.31]
[1759737468889,10.87647521,231.32,231.27,0.67]
[1759737469290,4.32282885,231.33,231.27,0.67]
[1759737470104,15.1991172,231.34,231.27,0.67]
[1759737470305,15.1991172,231.34,231.28,30.64]
[1759737470505,15.1991172,231.34,231.28,31.31]
[1759737470906,15.1991172,231.34,231.28,30.64]
[1759737471094,15.1991172,231.34,231.29,0.67]
[1759737471295,15.1991172,231.34,231.3,0.67]
[1759737473715,15.1991172,231.34,231.28,34.96368109]
[1759737473895,15.1991172,231.34,231.31,0.67]
[1759737474319,15.1991172,231.34,231.28,34.96368109]
[1759737474499,10.87647521,231.35,231.32,0.67]
[1759737474702,31.67647521,231.35,231.3,0.67]
[1759737474923,0.1,231.39,231.32,11.50508567]
[1759737475092,0.1,231.39,231.33,31.31]
[1759737475609,0.1,231.39,231.34,31.31]
[1759737475795,0.1,231.39,231.35,30.64]
[1759737475995,0.1,231.39,231.35,31.31]
[1759737476621,4.42177376,231.39,231.35,31.31]
[1759737476918,4.42177376,231.39,231.36,0.67]
[1759737477105,4.42177376,231.39,231.32,10.97647521]
[1759737477311,11.57647521,231.38,231.31,31.31]
[1759737477818,11.57647521,231.38,231.32,0.67]
[1759737478202,15.19871677,231.37,231.32,0.67]
[1759737479513,15.19871677,231.37,231.33,0.67]
[1759737481619,4.32224156,231.37,231.33,0.67]
[1759737481820,4.32224156,231.37,231.31,30.64]
[1759737482006,4.32224156,231.37,231.32,0.67]
[1759737482323,5.02224156,231.37,231.33,30.62]
[1759737482621,4.32224156,231.37,231.33,30.62]
[1759737482921,4.32224156,231.37,231.31,0.67]
[1759737483118,4.32224156,231.37,231.32,30.62]
[1759737483325,4.32224156,231.37,231.33,0.67]
[1759737487128,79.1,231.36,231.33,0.67]
[1759737489232,4.32245515,231.35,231.33,0.67]
[1759737491632,4.32245515,231.35,231.29,15.89988378]
[1759737491633,0.7,231.34,231.29,12.24647521]
[1759737491808,4.32245515,231.35,231.27,0.67]
[1759737491809,79.8,231.33,231.27,0.67]
[1759737492327,79.8,231.33,231.28,30.62]
[1759737492518,79.8,231.33,231.28,31.29]
[1759737492720,79.8,231.33,231.29,0.67]
[1759737492929,10.87647521,231.32,231.28,30.62]
[1759737493135,10.87647521,231.32,231.28,31.29]
[1759737493718,15.19958012,231.32,231.29,0.67]
[1759737494133,15.19958012,231.32,231.28,30.62]
[1759737494321,15.19958012,231.32,231.28,31.29]
[1759737494519,0.7,231.31,231.25,0.67]
[1759737494732,0.7,231.31,231.27,30.62]
[1759737495222,15.19958012,231.32,231.27,31.29]
[1759737495424,0.7,231.31,231.27,31.29]
[1759737495744,5.02338953,231.3,231.23,12.9794276]
[1759737495935,12.99663532,231.29,231.23,31.27]
[1759737497925,15.20005991,231.29,231.23,30.6]
[1759737498126,15.20005991,231.29,231.24,0.72]
[1759737498727,15.20005991,231.29,231.25,0.72]
[1759737501739,15.20005991,231.29,231.2,4.32509742]
[1759737501941,10.87647521,231.25,231.18,0.72]
[1759737502318,10.87647521,231.23,231.19,30.6]
[1759737502535,2.12016011,231.25,231.19,30.6]
[1759737502839,2.80016011,231.25,231.19,31.32]
[1759737503043,2.03796887,231.25,231.19,31.32]
[1759737503618,10.87647521,231.23,231.19,31.32]
[1759737503819,10.87647521,231.23,231.19,30.6]
[1759737504028,10.87647521,231.23,231.2,0.72]
[1759737504230,10.87647521,231.28,231.2,0.72]
[1759737505341,15.20033703,231.28,231.21,4.32507244]
[1759737505542,15.20033703,231.28,231.22,0.72]
[1759737505937,15.88033703,231.28,231.22,0.72]
[1759737506130,15.20033703,231.28,231.22,0.72]
[1759737506843,15.20033703,231.28,231.23,30.6]
[1759737507034,15.88033703,231.28,231.23,31.32]
[1759737508635,0.68,231.27,231.21,0.72]
[1759737508933,4.32413733,231.26,231.22,30.6]
[1759737509133,4.32413733,231.26,231.22,0.72]
[1759737510439,10.87647521,231.29,231.23,0.72]
[1759737510750,15.20018986,231.29,231.23,5.04468251]
[1759737510920,10.87647521,231.27,231.24,0.72]
[1759737511124,10.87647521,231.27,231.25,0.72]
[1759737511348,79.1,231.28,231.25,0.72]
[1759737511741,20.8,231.32,231.26,31.32]
[1759737512054,10.87647521,231.33,231.27,0.72]
[1759737512752,4.32296243,231.33,231.27,5.04392347]
[1759737512938,4.32296243,231.33,231.28,0.72]
[1759737513137,4.32296243,231.33,231.29,0.72]
[1759737514556,10.87647521,231.31,231.26,0.69]
[1759737514852,10.87647521,231.32,231.27,30.6]
[1759737515022,10.87647521,231.32,231.27,31.29]
[1759737515222,11.56647521,231.32,231.27,31.29]
[1759737515457,10.87647521,231.32,231.28,0.69]
[1759737515948,10.87647521,231.37,231.28,0.69]
[1759737516956,15.19855672,231.37,231.29,4.32357646]
[1759737517259,15.19855672,231.37,231.3,0.69]
[1759737518039,15.19855672,231.37,231.31,4.32320262]
[1759737518239,15.19855672,231.37,231.32,0.69]
[1759737518654,15.88855672,231.37,231.32,0.69]
[1759737519254,15.19855672,231.37,231.33,0.69]
[1759737520160,15.19855672,231.37,231.31,4.32320262]
[1759737520364,15.19855672,231.37,231.31,0.69]
[1759737521560,15.19855672,231.37,231.3,0.69]
[1759737521858,10.87647521,231.33,231.26,5.01411461]
[1759737522060,10.87647521,231.33,231.27,30.58]
[1759737522566,4.32301573,231.32,231.27,30.58]
[1759737522955,4.32301573,231.32,231.27,34.90394134]
[1759737523159,4.32301573,231.32,231.28,0.69]
[1759737524866,5.01301573,231.32,231.27,30.58]
[1759737525068,5.01301573,231.32,231.26,0.69]
[1759737525069,11.56647521,231.31,231.26,0.69]
[1759737525369,10.87647521,231.31,231.26,30.58]
[1759737525768,10.87647521,231.31,231.27,0.69]
[1759737527679,4.3232249,231.31,231.27,0.69]
[1759737528142,4.3232249,231.31,231.26,30.58]
[1759737528347,5.0332249,231.31,231.26,30.58]
[1759737528657,5.0332249,231.31,231.26,31.27]
[1759737528860,79.1,231.3,231.26,31.27]
[1759737529474,4.32285578,231.33,231.27,0.69]
[1759737530184,0.71,231.42,231.27,0.69]
[1759737530363,10.97647521,231.39,231.28,12.97605917]
[1759737530554,10.97647521,231.39,231.29,0.69]
[1759737530754,11.68647521,231.39,231.29,0.69]
[1759737531254,16.00830764,231.39,231.29,0.69]
[1759737531477,16.00830764,231.39,231.3,4.32338953]
[1759737531680,26.81257748,231.39,231.31,31.27]
[1759737531968,0.71,231.38,231.31,30.58]
[1759737532176,0.71,231.37,231.31,30.58]
[1759737532856,4.32226832,231.36,231.31,30.58]
[1759737533064,5.03226832,231.36,231.31,31.27]
[1759737534071,4.32189471,231.38,231.31,30.58]
[1759737534270,5.03189471,231.38,231.32,31.27]
[1759737534463,5.03189471,231.38,231.32,30.58]
[1759737534769,11.58647521,231.37,231.3,0.69]
[1759737535076,11.58647521,231.37,231.28,4.32375277]
[1759737535279,10.87647521,231.35,231.26,21.49]
[1759737535467,10.87647521,231.33,231.27,30.56]
[1759737536583,4.32301573,231.32,231.27,30.56]
[1759737537082,4.32301573,231.32,231.28,0.69]
[1759737537980,5.03301573,231.32,231.27,30.56]
[1759737538162,5.03301573,231.32,231.27,31.25]
[1759737538354,4.32301573,231.32,231.27,30.56]
[1759737538560,4.32301573,231.32,231.28,0.69]
[1759737540382,4.32301573,231.32,231.29,0.69]
[1759737541583,15.19932267,231.33,231.29,0.69]
[1759737541759,10.87647521,231.36,231.3,0.69]
[1759737542373,15.19874353,231.36,231.3,0.69]
[1759737542575,15.90874353,231.36,231.3,0.69]
[1759737543683,10.87647521,231.34,231.3,31.25]
[1759737543864,10.87647521,231.34,231.31,0.69]
[1759737544274,10.87647521,231.34,231.3,30.56]
[1759737544581,0.71,231.33,231.25,12.97774317]
[1759737544761,5.03301573,231.32,231.26,30.56]
[1759737545472,15.84055506,231.32,231.26,30.56]
[1759737545682,10.87647521,231.31,231.25,0.69]
[1759737545987,10.87647521,231.31,231.26,30.56]
[1759737546188,11.58647521,231.31,231.26,31.25]
[1759737546488,10.87647521,231.31,231.27,0.69]
[1759737546682,10.87647521,231.31,231.26,30.56]
[1759737546885,4.32336548,231.31,231.27,0.69]
[1759737547487,4.32336548,231.31,231.26,30.56]
[1759737547683,4.32336548,231.31,231.27,0.69]
[1759737547993,4.32336548,231.31,231.26,31.25]
[1759737548286,5.03336548,231.31,231.26,31.25]
[1759737550084,4.32336548,231.31,231.27,0.69]
[1759737550277,4.32336548,231.31,231.28,0.69]
[1759737550479,4.32302938,231.32,231.28,0.69]
[1759737551685,4.32302938,231.32,231.26,30.56]
[1759737551889,4.32302938,231.32,231.27,0.69]
[1759737552089,5.03302938,231.32,231.27,0.69]
[1759737553713,12.94444408,231.31,231.24,0.69]
[1759737553986,12.94444408,231.31,231.25,30.56]
[1759737554186,10.87647521,231.31,231.25,30.56]
[1759737554384,10.87647521,231.31,231.26,0.69]
[1759737554688,10.87647521,231.31,231.27,0.69]
[1759737555086,10.87647521,231.29,231.28,0.69]
[1759737555594,79.1,231.31,231.28,0.69]
[1759737555887,79.1,231.31,231.29,30.54]
[1759737556093,79.1,231.31,231.29,31.23]
[1759737556594,79.1,231.31,231.29,30.54]
[1759737556796,79.1,231.31,231.29,31.23]
[1759737559092,79.1,231.31,231.29,30.54]
[1759737559795,83.42320949,231.31,231.23,12.97886607]
[1759737559998,83.42320949,231.31,231.25,0.7]
[1759737560201,79.1,231.31,231.25,0.7]
[1759737560696,79.1,231.31,231.25,13.67774317]
[1759737560896,79.1,231.31,231.26,0.7]
[1759737561276,79.1,231.31,231.26,13.67774317]
[1759737561476,79.1,231.31,231.27,5.02395036]
[1759737561691,79.1,231.31,231.28,31.24]
[1759737561905,79.1,231.31,231.29,0.7]
[1759737562603,79.1,231.31,231.25,33.77774317]
[1759737562789,79.1,231.31,231.26,31.24]
[1759737562990,79.1,231.31,231.27,0.7]
[1759737563487,83.42323076,231.31,231.27,0.7]
[1759737563881,83.42323076,231.31,231.26,30.54]
[1759737564198,83.42323076,231.31,231.27,0.7]
[1759737564403,79.1,231.31,231.28,0.7]
[1759737566502,79.1,231.31,231.15,10.87647521]
[1759737566503,39.84549626,231.2,231.15,10.87647521]
[1759737566697,39.84549626,231.2,231.17,10.87647521]
[1759737567700,39.84549626,231.2,231.19,4.3254466]
[1759737567900,39.84549626,231.2,231.19,34.8654466]
[1759737568596,39.84549626,231.2,231.19,35.5654466]
[1759737570587,39.84549626,231.2,231.19,48.5448742]
[1759737571097,0.71,231.3,231.19,51.34]
[1759737571299,0.71,231.3,231.19,64.3194276]
[1759737571487,0.71,231.3,231.19,51.34]
[1759737571792,0.71,231.3,231.23,20.8]
[1759737571996,0.71,231.3,231.24,30.54]
[1759737572693,0.71,231.3,231.25,4.32432432]
[1759737572898,0.71,231.29,231.25,4.32432432]
[1759737575203,79.1,231.31,231.25,15.13513513]
[1759737577092,79.1,231.31,231.25,15.83513513]
[1759737577401,0.69,231.34,231.25,28.81175558]
[1759737578404,0.69,231.34,231.25,28.11175558]
[1759737578702,175.52498521,231.38,231.26,0.7]
[1759737578703,4.32210978,231.37,231.26,0.7]
[1759737579010,0.69,231.36,231.26,13.67605917]
[1759737580208,0.69,231.36,231.29,20.8]
[1759737580505,0.69,231.36,231.3,30.52]
[1759737580686,10.87647521,231.38,231.3,30.52]
[1759737581005,11.56647521,231.38,231.3,30.52]
[1759737582404,0.69,231.37,231.31,4.32320262]
[1759737586212,0.69,231.37,231.29,21.5]
[1759737586392,0.69,231.36,231.29,20.8]
[1759737586712,0.69,231.35,231.3,30.5]
[1759737586886,0.1,231.39,231.3,30.5]
[1759737587084,0.69,231.38,231.3,31.2]
[1759737587300,0.1,231.39,231.3,31.2]
[1759737587506,0.1,231.39,231.31,0.7]
[1759737588311,0.1,231.39,231.32,4.32301573]
[1759737589213,0.1,231.39,231.32,15.13055506]
[1759737590302,0.78,231.39,231.33,0.68]
[1759737590609,0.78,231.39,231.34,30.5]
[1759737590826,0.1,231.39,231.34,30.5]
[1759737591012,0.68,231.38,231.34,30.5]
[1759737592412,0.68,231.38,231.34,34.82262262]
[1759737593397,0.68,231.38,231.3,4.42152798]
[1759737593398,0.68,231.37,231.3,5.10152798]
[1759737593718,0.68,231.36,231.31,30.5]
[1759737593920,0.68,231.36,231.31,31.18]
[1759737594493,0.68,231.35,231.31,4.32320262]
[1759737594698,0.68,231.35,231.31,34.82320262]
[1759737594997,5.00215775,231.37,231.31,35.50320262]
[1759737595214,0.1,231.39,231.31,34.82320262]
[1759737595405,0.78,231.39,231.32,0.68]
[1759737596318,0.1,231.39,231.32,0.68]
[1759737596503,5.10171833,231.39,231.32,0.68]
[1759737597017,5.10171833,231.39,231.31,31.18]
[1759737597220,0.1,231.39,231.32,35.50296454]
[1759737597408,0.78,231.39,231.33,0.68]
[1759737598620,0.78,231.39,231.34,4.32264199]
[1759737598817,0.1,231.39,231.34,4.32264199]
[1759737599021,0.68,231.38,231.34,4.32264199]
[1759737599826,4.42173849,231.39,231.34,4.32264199]
[1759737600122,5.10173849,231.39,231.34,0.68]
[1759737600322,0.1,231.39,231.35,0.68]
[1759737600842,0.1,231.39,231.36,4.32226832]
[1759737601199,0.1,231.39,231.36,5.00226832]
[1759737601418,0.1,231.39,231.37,0.68]
[1759737601829,0.1,231.39,231.36,34.80226832]
[1759737602119,0.1,231.39,231.36,35.48226832]
[1759737602621,0.1,231.39,231.38,4.32189471]
[1759737603041,0.1,231.39,231.38,5.00189471]
[1759737607025,0.1,231.39,231.38,25.80189471]
[1759737607323,0.1,231.39,231.38,25.12189471]
[1759737607699,0.1,231.39,231.38,25.80189471]
[1759737609660,0.1,231.39,231.38,25.12189471]
[1759737609938,0.1,231.39,231.38,25.80189471]
[1759737610432,0.1,231.39,231.38,27.53106362]
[1759737610735,1e-08,231.39,231.38,6.73106362]
[1759737611119,0.1,231.4,231.39,20.8]
[1759737611325,0.1,231.45,231.39,31.14]
[1759737611521,0.1,231.45,231.42,20.8]
[1759737611832,0.1,231.45,231.44,4.32077428]
[1759737612209,0.1,231.45,231.44,5.00077428]
[1759737612411,0.1,231.45,231.44,6.72971897]
[1759737612630,0.1,231.45,231.44,6.04971897]
[1759737613017,0.1,231.45,231.44,6.72971897]
[1759737614613,0.1,231.45,231.44,6.04971897]
[1759737615740,0.1,231.45,231.44,6.72971897]
[1759737621634,1e-08,231.45,231.44,17.60619418]
[1759737621941,0.1,231.5,231.48,20.8]
[1759737622150,0.1,231.5,231.49,30.44]
[1759737622341,0.1,231.5,231.49,34.83163432]
[1759737622648,0.1,231.5,231.49,36.56005605]
[1759737622848,0.1,231.5,231.49,35.84005605]
[1759737623045,0.1,231.5,231.49,36.56005605]
[1759737623235,0.1,231.5,231.49,40.87989707]
[1759737623546,0.1,231.5,231.49,10.43989707]
[1759737623748,0.1,231.5,231.49,40.87989707]
[1759737626536,0.1,231.51,231.49,40.87989707]
[1759737626739,0.1,231.51,231.5,0.72]
[1759737627134,0.1,231.53,231.52,20.8]
[1759737627447,0.1,231.53,231.52,51.96]
[1759737627842,0.1,231.53,231.52,53.68804838]
[1759737628334,0.1,231.53,231.52,58.00732965]
[1759737630441,0.1,231.53,231.52,68.88380486]
[1759737631348,0.1,231.54,231.52,69.31573298]
[1759737631657,0.1,231.54,231.53,0.72]
[1759737631855,0.1,231.57,231.56,20.8]
[1759737632053,0.67,231.66,231.6,20.8]
[1759737632254,0.67,231.65,231.6,30.42]
[1759737632435,0.1,231.71,231.6,22.52737676]
[1759737632640,0.1,231.71,231.6,52.94737676]
[1759737632848,0.77,231.63,231.6,52.94737676]
[1759737633557,0.1,231.63,231.6,52.94737676]
[1759737635155,1e-08,231.61,231.6,68.85164126]
[1759737635357,0.1,231.63,231.6,79.64611448]
[1759737635539,0.1,231.63,231.61,11.58647521]
[1759737635738,0.1,231.63,231.62,10.87647521]
[1759737635941,0.1,231.63,231.62,51.22]
[1759737636140,0.1,231.63,231.62,20.8]
[1759737636361,0.1,231.63,231.62,51.22]
[1759737637059,0.1,231.63,231.62,55.53741645]
[1759737638064,0.1,231.63,231.62,57.26471861]
[1759737639538,0.79,231.67,231.62,68.05825975]
[1759737639763,0.69,231.66,231.62,68.05825975]
[1759737640059,0.69,231.65,231.63,30.4]
[1759737640258,0.1,231.67,231.66,20.8]
[1759737640469,0.1,231.67,231.66,51.2]
[1759737640966,0.79,231.67,231.66,51.2]
[1759737641148,0.79,231.67,231.66,57.24382398]
[1759737642768,0.1,231.67,231.66,57.24382398]
[1759737643069,0.79,231.67,231.66,57.24382398]
[1759737643849,0.79,231.71,231.66,68.74550143]
[1759737644079,0.1,231.71,231.67,0.71]
[1759737644252,0.1,231.71,231.7,20.8]
[1759737644446,0.1,231.71,231.7,51.2]
[1759737645070,0.1,231.71,231.7,52.92670566]
[1759737645560,0.1,231.71,231.7,57.24263142]
[1759737645759,0.1,231.71,231.7,26.84263142]
[1759737645959,0.1,231.71,231.7,57.24263142]
[1759737647961,0.1,231.74,231.73,20.8]
[1759737648172,0.1,231.74,231.73,51.2]
[1759737648352,0.8,231.74,231.73,20.8]
[1759737648687,0.8,231.74,231.73,62.07647521]
[1759737649549,0.8,231.74,231.73,66.39184223]
[1759737649981,0.1,231.74,231.73,66.39184223]
[1759737650566,0.1,231.74,231.73,35.99184223]
[1759737650766,0.1,231.74,231.73,66.37184223]
[1759737653059,0.7,231.8,231.73,110.27357009]
[1759737653267,0.7,231.8,231.77,20.8]
[1759737653483,0.7,231.8,231.78,30.38]
[1759737653780,31.68035303,231.91,231.78,30.38]
[1759737653781,0.7,231.79,231.78,30.38]
[1759737654289,10.87647521,231.9,231.81,20.8]
[1759737654290,4.31229802,231.9,231.81,20.8]
[1759737654585,4.31226463,231.9,231.82,30.38]
[1759737654876,0.7,231.89,231.83,30.38]
[1759737655174,0.7,231.88,231.84,30.38]
[1759737655374,0.7,231.87,231.84,30.38]
[1759737655583,0.7,231.86,231.84,34.69226463]
[1759737655767,0.7,231.85,231.84,34.69226463]
[1759737656281,0.7,231.85,231.84,39.00558416]
[1759737657556,0.7,231.87,231.84,39.00558416]
[1759737657769,0.7,231.86,231.84,39.00558416]
[1759737658057,0.7,231.85,231.84,39.00558416]
[1759737658760,0.7,231.85,231.84,34.69226463]
[1759737658972,4.31242013,231.89,231.84,4.31226463]
[1759737659174,0.7,231.85,231.84,4.31226463]
[1759737659357,0.7,231.85,231.84,34.69226463]
[1759737659685,0.8,231.91,231.87,20.8]
[1759737659862,0.7,231.9,231.88,30.36]
[1759737660056,0.7,231.89,231.87,20.8]
[1759737660259,0.1,231.91,231.88,30.36]
[1759737660481,0.1,231.91,231.89,4.31238949]
[1759737660680,0.1,231.91,231.9,30.36]
[1759737661182,4.41204664,231.91,231.89,10.15647521]
[1759737661376,0.7,231.9,231.86,9.84]
[1759737661675,2.05349186,231.89,231.83,25.62]
[1759737661871,2.05349186,231.89,231.77,17.26044398]
[1759737661872,0.7,231.88,231.77,17.26044398]
[1759737662082,0.7,231.88,231.78,30.36]
[1759737662266,0.7,231.87,231.78,51.16]
[1759737662473,0.7,231.86,231.79,4.97424996]
[1759737662861,0.7,231.86,231.8,30.36]
[1759737663059,0.7,231.89,231.83,20.8]
[1759737663262,0.7,231.89,231.84,30.36]
[1759737663683,0.7,231.88,231.84,30.36]
[1759737663867,0.7,231.87,231.84,30.36]
[1759737664653,0.7,231.86,231.85,30.36]
[1759737666171,0.7,231.86,231.81,30.36]
[1759737666563,0.7,231.86,231.82,4.31369165]
[1759737667258,4.31238097,231.9,231.82,4.31369165]
[1759737667466,0.7,231.89,231.82,4.97369165]
[1759737667666,0.7,231.88,231.82,4.97369165]
[1759737668481,0.7,231.88,231.82,4.31369165]
[1759737668685,5.01276146,231.87,231.81,30.36]
[1759737669089,0.7,231.86,231.8,10.78067115]
[1759737669268,0.7,231.86,231.81,30.36]
[1759737669672,0.7,231.85,231.79,15.75408394]
[1759737669898,0.7,231.85,231.8,30.36]
[1759737670374,0.7,231.87,231.8,31.02]
[1759737671089,0.7,231.87,231.81,4.31387774]
[1759737671674,0.7,231.86,231.79,15.09395819]
[1759737671994,0.7,231.85,231.8,30.36]
[1759737672696,0.7,231.85,231.8,31.02]
[1759737672900,0.7,231.87,231.81,0.66]
[1759737673190,5.01278402,231.87,231.81,4.97386441]
[1759737673793,5.01278402,231.87,231.8,34.67403962]
[1759737674276,5.01278402,231.87,231.8,30.36]
[1759737674482,0.7,231.86,231.8,30.36]
[1759737675281,5.01300095,231.86,231.8,30.36]
[1759737675485,0.7,231.86,231.8,35.33400843]
[1759737675680,4.31256196,231.89,231.8,34.67400843]
[1759737675996,0.7,231.88,231.8,35.33400843]
[1759737676187,0.7,231.88,231.81,30.36]
[1759737676512,0.7,231.87,231.81,30.36]
[1759737677201,5.01287703,231.87,231.81,34.67383673]
[1759737677392,5.01287703,231.87,231.82,30.36]
[1759737677789,0.7,231.86,231.82,30.36]
[1759737678497,4.31287703,231.87,231.82,30.36]
[1759737678680,4.31287703,231.87,231.81,30.36]
[1759737678881,5.01287703,231.87,231.81,30.36]
[1759737679380,5.01287703,231.87,231.81,31.03]
[1759737679587,5.01287703,231.87,231.81,35.34382661]
[1759737680286,0.7,231.87,231.81,35.34382661]